fUSD/lending_fUSD_20240905
["ID","MTS","AMOUNT","RATE_DAILY","PERIOD"]
[337266738,1725561032492,-1786.71591369,0.00013754,2]
[337266739,1725561032570,-3172.38668386,0.00013754,2]
[337266754,1725561032945,-0.16996802,0.00013754,2]
[337266756,1725561032956,-8868.9113244,0.00013754,2]
[337266758,1725561032968,-6380.4122319,0.00013754,2]
[337266760,1725561032977,-250.0,0.00013757,2]
[337266762,1725561032987,-264.6,0.0001379,2]
[337266764,1725561032996,-250.0,0.0001379,2]
[337266766,1725561033006,-165.76,0.0001379,2]
[337266768,1725561033015,-300.0,0.000138,2]
[337266770,1725561033025,-363.0,0.00013806,2]
[337266772,1725561033035,-1000.0,0.00013811,2]
[337266773,1725561033046,-185.0,0.00013984,2]
[337266774,1725561033055,-1641.0056827,0.00014,2]
[337266775,1725561033066,-755.57,0.00014165,2]
[337266776,1725561033076,-299.99,0.00014165,2]
[337266777,1725561033086,-1004.0,0.000146,2]
[337266778,1725561033095,-260.5687,0.00014694,2]
[337266779,1725561033105,-150.0,0.00014694,2]
[337266780,1725561033114,-12061.7949,0.00014695,2]
[337266781,1725561033124,-213.8932,0.00014695,2]
[337266782,1725561033134,-6205.1204,0.00014695,2]
[337266783,1725561033144,-725.01302709,0.000147,2]
[337266784,1725561033154,-1000.0,0.000147,2]
[337266785,1725561033165,-317.13339458,0.00014711,2]
[337266786,1725561033175,-4044.91967454,0.00014712,2]
[337266787,1725561033186,-725.01302701,0.00014722,2]
[337266788,1725561033197,-150.0,0.00014741,2]
[337266789,1725561033207,-725.01302701,0.00014744,2]
[337266790,1725561033419,-3000.0,0.0001475,2]
[337266791,1725561033446,-725.01302701,0.00014767,2]
[337266792,1725561033456,-256.65943804,0.00014783,2]
[337266793,1725561033466,-46902.70917756,0.00014785,3]
[337266808,1725561038657,-1863.758963,0.00014785,3]
[337266809,1725561038670,-5020.75744016,0.00014785,3]
[337266810,1725561038739,-7430.90970521,0.00014785,3]
[337266811,1725561038752,-15004.29675159,0.00014785,3]
[337266812,1725561038763,-8476.82360525,0.00014785,3]
[337266821,1725561040354,-567.612593,0.00014785,3]
[337266822,1725561040434,-1131.09176482,0.00014785,3]
[337266823,1725561040524,-35194.60240941,0.00014785,3]
[337266824,1725561040534,-725.01302701,0.00014789,2]
[337266825,1725561040543,-500.0,0.00014793,2]
[337266826,1725561040552,-500.0,0.00014793,2]
[337266827,1725561040563,-497.43043857,0.00014793,2]
[337266828,1725561040572,-500.0,0.00014793,2]
[337266829,1725561040582,-500.0,0.00014793,2]
[337266830,1725561040591,-165.50728015,0.00014793,2]
[337266831,1725561040601,-500.0,0.00014793,2]
[337266832,1725561040611,-500.0,0.00014793,2]
[337266833,1725561040620,-500.0,0.00014793,2]
[337266834,1725561040629,-500.0,0.00014793,2]
[337266835,1725561040639,-500.0,0.00014793,2]
[337266836,1725561040648,-500.0,0.00014793,2]
[337266837,1725561040657,-500.0,0.00014793,2]
[337266838,1725561040667,-500.0,0.00014794,2]
[337266839,1725561040677,-500.0,0.00014794,2]
[337266840,1725561040687,-500.0,0.00014794,2]
[337266841,1725561040697,-501.98,0.00014794,2]
[337266842,1725561040707,-1008.11,0.00014794,2]
[337266843,1725561040716,-500.0,0.00014794,2]
[337266844,1725561040725,-337.74,0.00014794,2]
[337266845,1725561040735,-273.39940382,0.00014794,2]
[337266846,1725561040751,-226.60059618,0.00014794,2]
[337266848,1725561040761,-500.0,0.00014794,2]
[337266850,1725561040772,-500.0,0.00014794,2]
[337266852,1725561040782,-500.0,0.00014794,2]
[337266854,1725561040792,-500.0,0.00014794,2]
[337266856,1725561040801,-500.0,0.00014794,2]
[337266858,1725561040811,-951.18,0.00014794,2]
[337266859,1725561040820,-500.0,0.00014794,2]
[337266861,1725561040829,-1222.38,0.00014794,2]
[337266863,1725561040839,-500.0,0.00014794,2]
[337266865,1725561040849,-500.01,0.00014794,2]
[337266867,1725561040858,-500.0,0.00014794,2]
[337266869,1725561040867,-500.0,0.00014794,2]
[337266871,1725561040877,-902.73,0.00014794,2]
[337266872,1725561040886,-500.0,0.00014794,2]
[337266874,1725561040895,-500.0,0.00014794,2]
[337266875,1725561040905,-500.0,0.00014794,2]
[337266876,1725561040915,-578.91,0.00014794,2]
[337266878,1725561040924,-500.0,0.00014794,2]
[337266879,1725561040934,-789.73,0.00014794,2]
[337266880,1725561040943,-500.0,0.00014794,2]
[337266881,1725561040952,-500.0,0.00014794,2]
[337266882,1725561040961,-12915.97,0.00014794,2]
[337266883,1725561040970,-500.0,0.00014794,2]
[337266884,1725561040981,-524.35,0.00014794,2]
[337266885,1725561040991,-2983.37,0.00014794,2]
[337266886,1725561041000,-500.0,0.00014794,2]
[337266887,1725561041009,-2129.35,0.00014794,2]
[337266888,1725561041019,-500.0,0.00014794,2]
[337266889,1725561041030,-500.0,0.00014794,2]
[337266890,1725561041039,-500.0,0.00014794,2]
[337266891,1725561041049,-500.0,0.00014794,2]
[337266892,1725561041057,-500.0,0.00014794,2]
[337266893,1725561041067,-500.0,0.00014794,2]
[337266894,1725561041077,-6707.91,0.00014794,2]
[337266895,1725561041086,-3069.75,0.00014794,2]
[337266896,1725561041097,-500.0,0.00014794,2]
[337266897,1725561041106,-500.0,0.00014794,2]
[337266898,1725561041115,-500.0,0.00014794,2]
[337266899,1725561041124,-500.0,0.00014794,2]
[337266900,1725561041133,-1596.22,0.00014794,2]
[337266901,1725561041143,-1207.17,0.00014794,2]
[337266902,1725561041153,-831.73,0.00014794,2]
[337266903,1725561041162,-851.1,0.00014794,2]
[337266904,1725561041172,-500.0,0.00014794,2]
[337266905,1725561041182,-500.0,0.00014794,2]
[337266906,1725561041192,-7139.75,0.00014794,2]
[337266907,1725561041201,-3375.0,0.00014794,2]
[337266908,1725561041211,-2299.74,0.00014794,2]
[337266909,1725561041220,-1790.61,0.00014794,2]
[337266910,1725561041230,-500.0,0.00014794,2]
[337266911,1725561041240,-6932.94,0.00014794,2]
[337266912,1725561041249,-3304.68,0.00014794,2]
[337266913,1725561041259,-3000.7,0.00014794,2]
[337266914,1725561041268,-500.0,0.00014794,2]
[337266915,1725561041279,-500.0,0.00014794,2]
[337266916,1725561041289,-500.0,0.00014794,2]
[337266917,1725561041298,-500.0,0.00014794,2]
[337266918,1725561041307,-4458.5,0.00014794,2]
[337266919,1725561041317,-837.63,0.00014794,2]
[337266920,1725561041326,-500.0,0.00014794,2]
[337266921,1725561041336,-1031.09,0.00014794,2]
[337266922,1725561041346,-3565.08,0.00014794,2]
[337266923,1725561041355,-500.0,0.00014794,2]
[337266924,1725561041365,-2448.07,0.00014794,2]
[337266925,1725561041374,-500.0,0.00014794,2]
[337266926,1725561041383,-500.0,0.00014794,2]
[337266927,1725561041393,-500.0,0.00014794,2]
[337266928,1725561041402,-4461.09,0.00014794,2]
[337266929,1725561041412,-500.0,0.00014794,2]
[337266930,1725561041421,-500.0,0.00014794,2]
[337266931,1725561041430,-500.0,0.00014794,2]
[337266932,1725561041440,-1570.52,0.00014794,2]
[337266933,1725561041449,-500.0,0.00014794,2]
[337266934,1725561041458,-490.53,0.00014794,2]
[337266935,1725561041468,-3881.08,0.00014794,2]
[337266936,1725561041477,-163.85323105,0.00014794,2]
[337266937,1725561041488,-842.08,0.00014794,2]
[337266938,1725561041498,-500.0,0.00014794,2]
[337266939,1725561041508,-645.39613462,0.00014794,2]
[337266940,1725561041520,-2310.54,0.00014794,2]
[337266941,1725561041530,-826.62,0.00014794,2]
[337266942,1725561041540,-921.26,0.00014794,2]
[337266943,1725561041549,-889.71,0.00014794,2]
[337266944,1725561041560,-500.0,0.00014794,2]
[337266945,1725561041569,-1288.44,0.00014794,2]
[337266946,1725561041579,-500.0,0.00014794,2]
[337266947,1725561041589,-5322.3,0.00014794,2]
[337266948,1725561041600,-4988.25,0.00014794,2]
[337266949,1725561041611,-881.32,0.00014794,2]
[337266950,1725561041621,-2716.66,0.00014794,2]
[337266951,1725561041630,-644.58,0.00014794,2]
[337266952,1725561041639,-1269.27,0.00014794,2]
[337266953,1725561041649,-1570.68,0.00014794,2]
[337266954,1725561041658,-603.89,0.00014794,2]
[337266955,1725561041668,-537.55,0.00014794,2]
[337266956,1725561041680,-500.0,0.00014794,2]
[337266957,1725561041691,-905.02,0.00014794,2]
[337266958,1725561041701,-500.0,0.00014794,2]
[337266959,1725561041710,-810.24,0.00014794,2]
[337266960,1725561041720,-500.0,0.00014794,2]
[337266961,1725561041730,-500.0,0.00014794,2]
[337266962,1725561041740,-734.12,0.00014794,2]
[337266963,1725561041749,-768.05,0.00014794,2]
[337266964,1725561041759,-2643.59,0.00014794,2]
[337266965,1725561041768,-500.0,0.00014794,2]
[337266966,1725561041783,-500.0,0.00014794,2]
[337266967,1725561041792,-500.0,0.00014794,2]
[337266968,1725561041802,-161.95107,0.00014795,2]
[337266969,1725561041811,-152.928376,0.00014795,2]
[337266970,1725561041821,-341166.2709,0.00014795,2]
[337266971,1725561041831,-317.13339458,0.00014806,2]
[337266972,1725561041840,-725.01302701,0.00014811,2]
[337266973,1725561041850,-150.0,0.00014823,2]
[337266974,1725561041860,-1500.0,0.00014824,2]
[337266975,1725561041870,-725.01302701,0.00014833,2]
[337266976,1725561041880,-256.65943803,0.00014834,2]
[337266977,1725561041889,-725.01302701,0.00014856,2]
[337266978,1725561041899,-500.0,0.00014873,2]
[337266979,1725561041908,-3138.54653998,0.00014874,3]
[337266980,1725561041919,-675.1766,0.00014876,2]
[337266981,1725561041928,-3256.0601,0.00014876,2]
[337266982,1725561041938,-725.01302701,0.00014878,2]
[337266983,1725561041947,-1000.0,0.0001488,2]
[337266984,1725561041957,-1790.61,0.00014882,2]
[337266985,1725561041967,-402.19768138,0.00014882,2]
[337266986,1725561041976,-842.08,0.00014882,2]
[337266987,1725561041986,-500.0,0.00014882,2]
[337266988,1725561041996,-921.26,0.00014882,2]
[337266989,1725561042006,-500.0,0.00014882,2]
[337266990,1725561042015,-1570.68,0.00014882,2]
[337266991,1725561042025,-537.55,0.00014882,2]
[337266992,1725561042034,-500.0,0.00014883,2]
[337266993,1725561042044,-500.0,0.00014883,2]
[337266994,1725561042053,-190.73,0.00014883,2]
[337266995,1725561042063,-1008.11,0.00014883,2]
[337266996,1725561042072,-191.36,0.00014883,2]
[337266997,1725561042082,-500.0,0.00014883,2]
[337266998,1725561042091,-500.0,0.00014883,2]
[337266999,1725561042100,-290.44,0.00014883,2]
[337267000,1725561042110,-340.56,0.00014883,2]
[337267001,1725561042119,-500.0,0.00014883,2]
[337267002,1725561042128,-500.0,0.00014883,2]
[337267003,1725561042138,-951.18,0.00014883,2]
[337267004,1725561042147,-500.0,0.00014883,2]
[337267005,1725561042156,-1222.38,0.00014883,2]
[337267006,1725561042165,-500.0,0.00014883,2]
[337267007,1725561042175,-500.01,0.00014883,2]
[337267008,1725561042184,-500.0,0.00014883,2]
[337267009,1725561042194,-500.0,0.00014883,2]
[337267010,1725561042203,-902.73,0.00014883,2]
[337267011,1725561042213,-500.0,0.00014883,2]
[337267012,1725561042222,-500.0,0.00014883,2]
[337267013,1725561042231,-500.0,0.00014883,2]
[337267014,1725561042241,-578.91,0.00014883,2]
[337267015,1725561042250,-500.0,0.00014883,2]
[337267016,1725561042260,-789.73,0.00014883,2]
[337267017,1725561042269,-500.0,0.00014883,2]
[337267018,1725561042279,-500.0,0.00014883,2]
[337267019,1725561042288,-500.0,0.00014883,2]
[337267020,1725561042298,-600.74,0.00014883,2]
[337267021,1725561042307,-501.69,0.00014883,2]
[337267022,1725561042494,-500.0,0.00014883,2]
[337267023,1725561042503,-500.0,0.00014883,2]
[337267024,1725561042514,-500.0,0.00014883,2]
[337267025,1725561042525,-500.0,0.00014883,2]
[337267026,1725561042534,-500.0,0.00014883,2]
[337267027,1725561042543,-500.0,0.00014883,2]
[337267028,1725561042552,-500.0,0.00014883,2]
[337267029,1725561042562,-500.0,0.00014883,2]
[337267030,1725561042571,-1207.17,0.00014883,2]
[337267031,1725561042579,-831.73,0.00014883,2]
[337267032,1725561042589,-851.1,0.00014883,2]
[337267033,1725561042598,-500.0,0.00014883,2]
[337267034,1725561042607,-3375.0,0.00014883,2]
[337267035,1725561042616,-500.0,0.00014883,2]
[337267036,1725561042625,-6932.94,0.00014883,2]
[337267037,1725561042634,-500.0,0.00014883,2]
[337267038,1725561042643,-500.0,0.00014883,2]
[337267039,1725561042653,-500.0,0.00014883,2]
[337267040,1725561042662,-837.63,0.00014883,2]
[337267041,1725561042671,-500.0,0.00014883,2]
[337267042,1725561042680,-3565.08,0.00014883,2]
[337267043,1725561042689,-500.0,0.00014883,2]
[337267044,1725561042698,-2448.07,0.00014883,2]
[337267045,1725561042707,-500.0,0.00014883,2]
[337267046,1725561042717,-500.0,0.00014883,2]
[337267047,1725561042727,-4461.09,0.00014883,2]
[337267048,1725561042737,-615.96,0.00014883,2]
[337267049,1725561042746,-500.0,0.00014883,2]
[337267050,1725561042755,-500.0,0.00014883,2]
[337267051,1725561042766,-2310.54,0.00014883,2]
[337267052,1725561042777,-889.71,0.00014883,2]
[337267053,1725561042786,-500.0,0.00014883,2]
[337267054,1725561042796,-151.0,0.00014883,2]
[337267055,1725561042805,-4988.25,0.00014883,2]
[337267056,1725561042815,-881.32,0.00014883,2]
[337267057,1725561042824,-644.58,0.00014883,2]
[337267058,1725561042834,-1269.27,0.00014883,2]
[337267059,1725561042843,-905.02,0.00014883,2]
[337267060,1725561042853,-500.0,0.00014883,2]
[337267061,1725561042862,-810.24,0.00014883,2]
[337267062,1725561042871,-500.0,0.00014883,2]
[337267063,1725561042881,-734.12,0.00014883,2]
[337267064,1725561042890,-768.05,0.00014883,2]
[337267065,1725561042899,-2643.59,0.00014883,2]
[337267066,1725561042909,-500.0,0.00014883,2]
[337267067,1725561042920,-500.0,0.00014883,2]
[337267068,1725561042930,-4707.81980997,0.00014884,3]
[337267069,1725561042939,-12915.97,0.00014884,2]
[337267070,1725561042948,-524.35,0.00014884,2]
[337267071,1725561042957,-2983.37,0.00014884,2]
[337267072,1725561042967,-2129.35,0.00014884,2]
[337267073,1725561042976,-500.0,0.00014884,2]
[337267074,1725561042986,-6707.91,0.00014884,2]
[337267075,1725561042997,-3069.75,0.00014884,2]
[337267076,1725561043007,-1596.22,0.00014884,2]
[337267077,1725561043016,-151.0,0.00014884,2]
[337267078,1725561043027,-500.0,0.00014884,2]
[337267079,1725561043036,-7139.75,0.00014884,2]
[337267080,1725561043045,-506.6546,0.00014884,2]
[337267081,1725561043055,-2299.74,0.00014884,2]
[337267082,1725561043065,-506.6546,0.00014884,2]
[337267083,1725561043076,-3304.68,0.00014884,2]
[337267084,1725561043085,-3000.7,0.00014884,2]
[337267085,1725561043094,-152.137545,0.00014884,2]
[337267086,1725561043105,-484.257225,0.00014884,2]
[337267087,1725561043115,-4458.5,0.00014884,2]
[337267089,1725561043125,-151.0,0.00014884,2]
[337267091,1725561043136,-484.257225,0.00014884,2]
[337267092,1725561043146,-1031.09,0.00014884,2]
[337267093,1725561043156,-500.0,0.00014884,2]
[337267094,1725561043165,-500.0,0.00014884,2]
[337267095,1725561043174,-1570.52,0.00014884,2]
[337267096,1725561043184,-3881.08,0.00014884,2]
[337267097,1725561043193,-151.0,0.00014884,2]
[337267099,1725561043203,-826.62,0.00014884,2]
[337267101,1725561043213,-1288.44,0.00014884,2]
[337267103,1725561043222,-5322.3,0.00014884,2]
[337267105,1725561043232,-2716.66,0.00014884,2]
[337267107,1725561043241,-603.89,0.00014884,2]
[337267109,1725561043250,-500.0,0.00014884,2]
[337267111,1725561043260,-500.0,0.00014884,2]
[337267113,1725561043269,-256.65943803,0.00014884,2]
[337267117,1725561043280,-500.0,0.00014884,2]
[337267122,1725561043289,-6277.09307996,0.00014885,3]
[337267125,1725561043299,-244.24540582,0.00014889,2]
[337267128,1725561043307,-1569.27326999,0.0001489,3]
[337267131,1725561043317,-244.24540582,0.00014892,2]
[337267132,1725561043326,-584.43888714,0.00014894,2]
[337267135,1725561043335,-595.56378823,0.00014894,2]
[337267138,1725561043345,-500.0,0.00014894,2]
[337267139,1725561043354,-500.0,0.00014894,2]
[337267140,1725561043364,-500.0,0.00014894,2]
[337267142,1725561043373,-515.53963809,0.00014894,2]
[337267144,1725561043383,-560.46656068,0.00014894,2]
[337267146,1725561043392,-552.02742985,0.00014894,2]
[337267147,1725561043402,-500.0,0.00014894,2]
[337267148,1725561043412,-500.0,0.00014894,2]
[337267149,1725561043422,-539.4092394,0.00014894,2]
[337267150,1725561043431,-500.0,0.00014894,2]
[337267151,1725561043440,-520.83722334,0.00014894,2]
[337267152,1725561043450,-520.7316405,0.00014894,2]
[337267153,1725561043459,-632.88058268,0.00014894,2]
[337267154,1725561043468,-402.64392012,0.00014894,2]
[337267155,1725561043478,-500.0,0.00014894,2]
[337267156,1725561043487,-500.0,0.00014894,2]
[337267157,1725561043496,-500.0,0.00014894,2]
[337267158,1725561043506,-531.9698398,0.00014894,2]
[337267159,1725561043518,-525.11772031,0.00014894,2]
[337267160,1725561043527,-500.0,0.00014894,2]
[337267161,1725561043536,-527.5926744,0.00014894,2]
[337267162,1725561043545,-500.0,0.00014894,2]
[337267163,1725561043555,-500.0,0.00014894,2]
[337267164,1725561043564,-504.12978937,0.00014894,2]
[337267165,1725561043573,-507.36442755,0.00014894,2]
[337267166,1725561043583,-500.0,0.00014894,2]
[337267167,1725561043593,-500.0,0.00014894,2]
[337267168,1725561043603,-500.0,0.00014894,2]
[337267169,1725561043613,-500.0,0.00014894,2]
[337267170,1725561043622,-500.0,0.00014894,2]
[337267171,1725561043631,-500.0,0.00014894,2]
[337267172,1725561043641,-500.0,0.00014894,2]
[337267173,1725561043650,-500.0,0.00014894,2]
[337267174,1725561043660,-500.0,0.00014894,2]
[337267175,1725561043669,-500.0,0.00014894,2]
[337267176,1725561043679,-500.0,0.00014894,2]
[337267177,1725561043690,-500.0,0.00014894,2]
[337267178,1725561043699,-500.0,0.00014894,2]
[337267179,1725561043707,-500.0,0.00014894,2]
[337267180,1725561043716,-500.0,0.00014894,2]
[337267181,1725561043726,-237.21978777,0.00014894,2]
[337267182,1725561043735,-500.0,0.00014894,2]
[337267183,1725561043744,-500.0,0.00014894,2]
[337267184,1725561043753,-500.0,0.00014894,2]
[337267185,1725561043762,-500.0,0.00014894,2]
[337267187,1725561043771,-500.0,0.00014894,2]
[337267189,1725561043780,-151.0,0.00014894,2]
[337267191,1725561043789,-500.0,0.00014894,2]
[337267193,1725561043799,-500.0,0.00014894,2]
[337267195,1725561043808,-375.44,0.00014894,2]
[337267197,1725561043817,-151.0,0.00014894,2]
[337267199,1725561043826,-500.0,0.00014894,2]
[337267201,1725561043835,-1008.11,0.00014894,2]
[337267204,1725561043844,-238.120662,0.00014894,2]
[337267205,1725561043853,-500.0,0.00014894,2]
[337267207,1725561043862,-500.0,0.00014894,2]
[337267208,1725561043871,-167.089184,0.00014894,2]
[337267209,1725561043880,-151.0,0.00014894,2]
[337267210,1725561043889,-151.0,0.00014894,2]
[337267211,1725561043898,-500.0,0.00014894,2]
[337267212,1725561043907,-227.980616,0.00014894,2]
[337267213,1725561043916,-227.980616,0.00014894,2]
[337267214,1725561043925,-153.093875,0.00014894,2]
[337267215,1725561043934,-151.0,0.00014894,2]
[337267216,1725561043943,-151.0,0.00014894,2]
[337267217,1725561043952,-500.0,0.00014894,2]
[337267218,1725561043961,-151.0,0.00014894,2]
[337267219,1725561043970,-151.0,0.00014894,2]
[337267220,1725561043979,-355.410473,0.00014894,2]
[337267221,1725561043988,-355.410473,0.00014894,2]
[337267222,1725561043997,-951.18,0.00014894,2]
[337267223,1725561044006,-151.0,0.00014894,2]
[337267224,1725561044015,-500.0,0.00014894,2]
[337267225,1725561044025,-1222.38,0.00014894,2]
[337267226,1725561044034,-500.0,0.00014894,2]
[337267227,1725561044043,-500.01,0.00014894,2]
[337267228,1725561044052,-500.0,0.00014894,2]
[337267229,1725561044061,-500.0,0.00014894,2]
[337267230,1725561044070,-902.73,0.00014894,2]
[337267231,1725561044079,-500.0,0.00014894,2]
[337267232,1725561044088,-500.0,0.00014894,2]
[337267233,1725561044097,-500.0,0.00014894,2]
[337267234,1725561044106,-578.91,0.00014894,2]
[337267235,1725561044115,-500.0,0.00014894,2]
[337267236,1725561044125,-789.73,0.00014894,2]
[337267237,1725561044134,-500.0,0.00014894,2]
[337267238,1725561044143,-500.0,0.00014894,2]
[337267239,1725561044153,-500.0,0.00014894,2]
[337267240,1725561044162,-558.019882,0.00014894,2]
[337267241,1725561044172,-558.019882,0.00014894,2]
[337267242,1725561044181,-151.0,0.00014894,2]
[337267243,1725561044191,-500.0,0.00014894,2]
[337267244,1725561044201,-500.0,0.00014894,2]
[337267245,1725561044210,-3703.330969,0.00014894,2]
[337267246,1725561044220,-500.0,0.00014894,2]
[337267247,1725561044230,-500.0,0.00014894,2]
[337267248,1725561044239,-151.0,0.00014894,2]
[337267249,1725561044248,-3703.330969,0.00014894,2]
[337267250,1725561044258,-500.0,0.00014894,2]
[337267251,1725561044268,-151.0,0.00014894,2]
[337267252,1725561044278,-500.0,0.00014894,2]
[337267253,1725561044288,-258.35973598,0.00014894,2]
[337267254,1725561044297,-500.0,0.00014894,2]
[337267255,1725561044306,-1207.17,0.00014894,2]
[337267256,1725561044316,-831.73,0.00014894,2]
[337267257,1725561044326,-151.0,0.00014894,2]
[337267258,1725561044335,-851.1,0.00014894,2]
[337267259,1725561044345,-500.0,0.00014894,2]
[337267260,1725561044359,-186.920659,0.00014894,2]
[337267261,1725561044368,-3375.0,0.00014894,2]
[337267262,1725561044378,-506.6546,0.00014894,2]
[337267263,1725561044388,-186.920659,0.00014894,2]
[337267264,1725561044397,-506.6546,0.00014894,2]
[337267265,1725561044407,-1790.61,0.00014894,2]
[337267266,1725561044417,-500.0,0.00014894,2]
[337267267,1725561044427,-6932.94,0.00014894,2]
[337267268,1725561044436,-500.0,0.00014894,2]
[337267269,1725561044445,-500.0,0.00014894,2]
[337267270,1725561044455,-500.0,0.00014894,2]
[337267271,1725561044464,-151.0,0.00014894,2]
[337267272,1725561044474,-484.257225,0.00014894,2]
[337267273,1725561044486,-151.0,0.00014894,2]
[337267274,1725561044496,-484.257225,0.00014894,2]
[337267275,1725561044506,-837.63,0.00014894,2]
[337267276,1725561044517,-500.0,0.00014894,2]
[337267277,1725561044532,-3565.08,0.00014894,2]
[337267278,1725561044546,-500.0,0.00014894,2]
[337267279,1725561044556,-2448.07,0.00014894,2]
[337267280,1725561044565,-500.0,0.00014894,2]
[337267281,1725561044575,-500.0,0.00014894,2]
[337267282,1725561044584,-4461.09,0.00014894,2]
[337267283,1725561044595,-500.0,0.00014894,2]
[337267284,1725561044605,-500.0,0.00014894,2]
[337267285,1725561044614,-151.0,0.00014894,2]
[337267286,1725561044624,-842.08,0.00014894,2]
[337267287,1725561044633,-500.0,0.00014894,2]
[337267288,1725561044642,-2310.54,0.00014894,2]
[337267289,1725561044652,-921.26,0.00014894,2]
[337267290,1725561044661,-889.71,0.00014894,2]
[337267291,1725561044671,-500.0,0.00014894,2]
[337267292,1725561044681,-500.0,0.00014894,2]
[337267293,1725561044690,-4988.25,0.00014894,2]
[337267294,1725561044699,-881.32,0.00014894,2]
[337267295,1725561044709,-644.58,0.00014894,2]
[337267296,1725561044717,-1269.27,0.00014894,2]
[337267297,1725561044727,-1570.68,0.00014894,2]
[337267298,1725561044736,-537.55,0.00014894,2]
[337267299,1725561044746,-905.02,0.00014894,2]
[337267300,1725561044756,-500.0,0.00014894,2]
[337267301,1725561044765,-810.24,0.00014894,2]
[337267302,1725561044775,-734.12,0.00014894,2]
[337267303,1725561044784,-768.05,0.00014894,2]
[337267304,1725561044794,-2643.59,0.00014894,2]
[337267305,1725561044803,-500.0,0.00014894,2]
[337267306,1725561044812,-244.24540582,0.00014895,2]
[337267307,1725561044822,-150.50574594,0.00014895,2]
[337267308,1725561044832,-151.0,0.00014895,2]
[337267309,1725561044841,-980.915738,0.00014895,2]
[337267310,1725561044850,-151.0,0.00014895,2]
[337267311,1725561044860,-151.0,0.00014895,2]
[337267312,1725561044869,-351.779963,0.00014895,2]
[337267313,1725561044878,-293.880287,0.00014895,2]
[337267314,1725561044887,-351.779963,0.00014895,2]
[337267315,1725561044896,-151.0,0.00014895,2]
[337267316,1725561044905,-151.0,0.00014895,2]
[337267317,1725561044914,-151.0,0.00014895,2]
[337267318,1725561044923,-151.0,0.00014895,2]
[337267319,1725561044932,-151.0,0.00014895,2]
[337267320,1725561044941,-151.0,0.00014895,2]
[337267321,1725561044950,-151.0,0.00014895,2]
[337267322,1725561044960,-151.0,0.00014895,2]
[337267323,1725561044969,-500.0,0.00014895,2]
[337267324,1725561044978,-500.0,0.00014895,2]
[337267325,1725561044987,-500.0,0.00014895,2]
[337267326,1725561044996,-799.09,0.00014895,2]
[337267327,1725561045006,-500.0,0.00014895,2]
[337267328,1725561045015,-500.0,0.00014895,2]
[337267329,1725561045028,-151.0,0.00014895,2]
[337267330,1725561045037,-151.0,0.00014895,2]
[337267331,1725561045046,-151.0,0.00014895,2]
[337267332,1725561045055,-151.0,0.00014895,2]
[337267333,1725561045064,-590.25,0.00014895,2]
[337267334,1725561045073,-500.0,0.00014895,2]
[337267335,1725561045082,-227.980616,0.00014895,2]
[337267336,1725561045091,-227.980616,0.00014895,2]
[337267337,1725561045100,-500.0,0.00014895,2]